bitfinex/quotes_SOLUSD_20240613
["timestamp","ask_amount","ask_price","bid_price","bid_amount"]
[1718296629085,2.5124,147.27,147.19,0.17]
[1718296629291,2.5126,147.26,147.18,0.34]
[1718296629500,2.5124,147.27,147.19,0.17]
[1718296629809,2.5125,147.26,147.19,0.17]
[1718296630226,31.8073,147.29,147.19,0.17]
[1718296630385,2.5124,147.27,147.19,0.17]
[1718296630814,2.5126,147.26,147.19,0.17]
[1718296631022,2.5131,147.23,147.17,20.0]
[1718296631231,2.513,147.24,147.17,20.0]
[1718296631396,2.513,147.23,147.17,20.0]
[1718296631713,2.513,147.23,147.16,6.5984]
[1718296631916,25.61,147.26,147.16,6.5984]
[1718296632090,67.5128,147.25,147.16,6.5984]
[1718296632412,65.0,147.25,147.16,6.5984]
[1718296632612,65.0,147.25,147.14,16.4156]
[1718296632613,25.61,147.2,147.14,16.4156]
[1718296632823,2.5136,147.2,147.14,16.4156]
[1718296633005,45.61,147.22,147.14,16.4156]
[1718296633223,48.1232,147.22,147.14,16.4156]
[1718296633541,2.5134,147.21,147.14,16.4156]
[1718296633725,2.5137,147.2,147.14,16.4156]
[1718296634039,2.5141,147.17,147.14,16.4156]
[1718296634215,2.5141,147.17,147.1,15.8709]
[1718296634602,2.5145,147.15,147.1,15.8709]
[1718296634830,2.5146,147.14,147.1,15.8709]
[1718296635227,45.0,147.16,147.1,15.8709]
[1718296635414,2.5147,147.13,147.1,15.8709]
[1718296635615,2.5146,147.14,147.05,23.0673]
[1718296636634,2.5146,147.14,147.06,20.0]
[1718296636815,2.5141,147.17,147.06,20.0]
[1718296637015,2.5142,147.16,147.06,20.0]
[1718296637735,2.5142,147.16,147.07,0.68]
[1718296638937,2.5146,147.14,147.07,0.17]
[1718296639116,2.5145,147.15,147.06,20.0]
[1718296639813,2.5145,147.15,147.07,0.17]
[1718296640009,28.39063328,147.25,147.09,0.17]
[1718296640010,50.08603328,147.25,147.09,0.17]
[1718296640221,30.6365,147.22,147.09,20.68]
[1718296640424,28.1233,147.22,147.09,20.68]
[1718296640826,2.5137,147.19,147.09,20.68]
[1718296641514,5.0269,147.21,147.09,20.68]
[1718296641714,2.5137,147.19,147.09,20.68]
[1718296642117,5.0272,147.2,147.09,20.68]
[1718296642317,2.5141,147.17,147.09,20.68]
[1718296642553,12.5679,147.2,147.09,20.68]
[1718296642844,25.61,147.19,147.09,20.34]
[1718296643021,2.5139,147.18,147.1,0.34]
[1718296643219,25.61,147.19,147.09,20.34]
[1718296643220,33.1513,147.19,147.09,20.34]
[1718296643560,2.5142,147.17,147.09,20.34]
[1718296643764,2.5142,147.16,147.09,0.34]
[1718296643919,2.5141,147.17,147.09,20.34]
[1718296644121,0.17,147.17,147.08,22.4333]
[1718296644485,2.5146,147.14,147.08,22.4333]
[1718296645329,5.0292,147.14,147.08,22.4333]
[1718296645534,2.515,147.12,147.08,22.4333]
[1718296645747,2.5149,147.13,147.08,22.4333]
[1718296645930,103.184,147.13,147.04,23.3082199]
[1718296646265,2.5153,147.1,147.04,23.3082199]
[1718296646473,2.5152,147.11,147.04,23.3082199]
[1718296646637,70.61,147.13,147.04,23.3082199]
[1718296646825,73.1248,147.13,147.04,23.3082199]
[1718296647153,28.1248,147.13,147.05,0.17]
[1718296647330,28.1248,147.13,147.05,0.34]
[1718296647656,2.5149,147.12,147.05,0.34]
[1718296648849,25.61,147.13,147.05,0.34]
[1718296649050,13.081,147.17,147.05,20.34]
[1718296649051,2.515,147.12,147.05,20.34]
[1718296649346,2.515,147.12,147.05,20.0]
[1718296650371,28.1248,147.13,147.05,20.0]
[1718296651047,2.5149,147.12,147.05,20.0]
[1718296651247,28.1248,147.13,147.05,20.0]
[1718296651448,25.61,147.13,147.05,20.0]
[1718296651780,5.0282,147.17,147.06,45.68]
[1718296651942,2.5146,147.14,147.07,20.0]
[1718296652680,2.5145,147.15,147.06,0.68]
[1718296652864,2.5145,147.15,147.06,45.68]
[1718296653180,2.5146,147.14,147.07,20.0]
[1718296653466,2.5148,147.13,147.06,0.17]
[1718296653775,57.5716,147.16,147.04,23.3082199]
[1718296653776,2.515,147.12,147.04,23.3082199]
[1718296654075,67.5148,147.13,147.04,23.3082199]
[1718296654369,2.5151,147.11,147.04,23.3082199]
[1718296655143,65.0,147.13,147.04,23.3082199]
[1718296655366,2.5155,147.09,147.04,23.3082199]
[1718296655548,2.5154,147.09,147.04,23.3082199]
[1718296656180,47.5153,147.1,147.04,23.3082199]
[1718296656350,25.61,147.11,147.04,23.3082199]
[1718296656673,22.5148,147.13,147.04,23.3082199]
[1718296656880,47.515,147.12,147.04,23.3082199]
[1718296657276,2.5151,147.11,147.04,23.3082199]
[1718296657570,45.0,147.12,147.04,23.3082199]
[1718296657777,2.5151,147.11,147.04,23.3082199]
[1718296657949,45.0,147.12,147.04,23.3082199]
[1718296658150,2.5151,147.11,147.04,23.3082199]
[1718296659257,2.5153,147.1,147.04,23.3082199]
[1718296659453,2.5153,147.1,147.04,17.0746199]
[1718296659954,45.61,147.11,147.04,17.0746199]
[1718296660583,45.0,147.1,147.04,17.0746199]
[1718296660962,47.5153,147.1,147.04,17.0746199]
[1718296661361,48.1252,147.11,147.04,17.0746199]
[1718296661974,2.5153,147.1,147.04,17.0746199]
[1718296662678,28.1252,147.11,147.04,17.0746199]
[1718296663960,2.5153,147.1,147.04,17.0746199]
[1718296664460,2.5154,147.09,147.04,17.0746199]
[1718296664676,2.5153,147.1,147.04,17.0746199]
[1718296666598,28.1252,147.11,147.04,17.0746199]
[1718296666768,25.61,147.11,147.04,17.0746199]
[1718296666967,2.5155,147.09,147.04,17.0746199]
[1718296667376,30.6403,147.11,147.04,17.0746199]
[1718296667573,2.5153,147.1,147.04,17.0746199]
[1718296669465,25.61,147.11,147.04,17.0746199]
[1718296669671,45.0,147.1,147.04,17.0746199]
[1718296670292,30.6404,147.11,147.04,17.0746199]
[1718296670479,2.5154,147.1,147.04,17.0746199]
[1718296670683,2.5154,147.09,147.04,17.0746199]
[1718296671189,2.5153,147.1,147.04,17.0746199]
[1718296671771,2.5154,147.09,147.04,17.0746199]
[1718296672191,2.5156,147.08,147.04,17.0746199]
[1718296672711,2.5156,147.08,147.04,24.13796885]
[1718296674114,2.5158,147.07,147.04,24.13796885]
[1718296675282,2.5157,147.08,147.04,24.13796885]
[1718296675673,7.5468,147.09,147.04,24.13796885]
[1718296675875,2.5157,147.08,147.04,24.13796885]
[1718296677088,2.5161,147.05,147.04,7.90436885]
[1718296677296,7.5484,147.05,147.04,7.90436885]
[1718296677500,2.5161,147.05,147.04,7.90436885]
[1718296678070,47.5161,147.05,147.04,7.90436885]
[1718296678268,70.3314,147.05,147.04,7.90436885]
[1718296678470,90.6714,147.05,147.04,7.90436885]
[1718296679383,70.6714,147.05,147.04,7.90436885]
[1718296679578,67.8561,147.05,147.04,7.90436885]
[1718296679897,67.6861,147.05,147.04,7.90436885]
[1718296680299,72.7184,147.05,147.04,7.90436885]
[1718296680612,90.8414,147.05,147.04,7.90436885]
[1718296681097,211.2014,147.05,147.04,1.87094786]
[1718296681277,2.5171,146.99,146.98,16.482]
[1718296681484,2.5171,146.99,146.94,15.2034]
[1718296682031,2.5175,146.97,146.94,15.2034]
[1718296682171,2.5177,146.96,146.94,15.2034]
[1718296682372,2.5177,146.96,146.89,0.8410199]
[1718296682373,2.5178,146.95,146.89,0.8410199]
[1718296682591,2.5182,146.93,146.89,0.8410199]
[1718296682899,47.5182,146.93,146.89,0.8410199]
[1718296683088,45.0,146.93,146.89,0.8410199]
[1718296683276,25.61,146.94,146.89,0.3410199]
[1718296683476,2.5174,146.98,146.89,0.3410199]
[1718296683681,65.17,146.99,146.89,0.3410199]
[1718296683900,0.34,146.98,146.89,0.3410199]
[1718296684096,65.0,146.99,146.89,0.3410199]
[1718296684517,67.5172,146.99,146.9,0.34]
[1718296684715,2.5173,146.98,146.9,0.34]
[1718296685212,2.5167,147.02,146.9,0.34]
[1718296685375,6.1766,147.04,146.9,0.34]
[1718296685376,6.1766,147.08,146.92,6.3615]
[1718296685580,28.1257,147.08,146.94,16.04]
[1718296685784,28.1257,147.08,146.95,65.68]
[1718296685994,35.6726,147.08,146.95,20.51]
[1718296686187,100.0,147.09,146.95,20.17]
[1718296686188,25.61,147.05,146.95,20.17]
[1718296686401,2.5166,147.02,146.95,20.0]
[1718296686592,30.6424,147.05,146.95,20.0]
[1718296686912,2.5167,147.02,146.95,20.0]
[1718296687305,25.61,147.02,146.94,16.04]
[1718296687622,47.8569,147.01,146.94,16.04]
[1718296687821,2.517,147.0,146.94,16.04]
[1718296688692,47.5169,147.01,146.94,16.04]
[1718296689096,2.517,147.0,146.94,16.04]
[1718296691011,2.5174,146.98,146.94,16.04]
[1718296691226,45.0,146.98,146.94,16.04]
[1718296691409,25.61,146.99,146.94,16.04]
[1718296691710,28.1271,146.99,146.94,16.04]
[1718296692294,47.6869,147.01,146.94,16.04]
[1718296692592,28.1267,147.02,146.94,16.04]
[1718296692814,2.5162,147.05,146.97,5.035]
[1718296692998,18.5893,147.07,146.97,2.5173]
[1718296692999,2.5165,147.03,146.97,2.5173]
[1718296693203,2.5164,147.04,146.98,2.5173]
[1718296693599,25.61,147.06,146.97,10.0696]
[1718296693799,28.126,147.06,146.98,13.09161977]
[1718296694102,28.126,147.06,147.0,2.5169]
[1718296694297,28.126,147.06,146.94,16.04]
[1718296694298,2.5163,147.04,146.99,2.5171]
[1718296694497,2.5162,147.05,146.97,20.0]
[1718296694702,2.5162,147.05,146.99,2.517]
[1718296695123,45.0,147.05,147.0,2.5168]
[1718296695299,28.126,147.06,147.0,2.5168]
[1718296695915,2.5163,147.04,146.96,5.2052]
[1718296696119,25.61,147.06,146.94,16.04]
[1718296696307,2.5169,147.01,146.95,2.5177]
[1718296696514,45.0,147.02,146.94,16.04]
[1718296696701,2.5169,147.01,146.95,2.5177]
[1718296696906,47.5167,147.02,146.96,2.5176]
[1718296697200,40.2337534,147.07,146.94,16.04]
[1718296697532,2.5167,147.02,146.95,5.0355]
[1718296697718,2.5167,147.02,146.96,2.5175]
[1718296698032,47.5165,147.03,146.98,2.5173]
[1718296698400,22.5164,147.04,146.98,2.5173]
[1718296698601,30.235,147.05,146.94,23.764]
[1718296698801,2.5169,147.01,146.95,2.5177]
[1718296699417,2.5167,147.02,146.94,21.0759]
[1718296699624,2.5167,147.02,146.96,2.5175]
[1718296699941,47.5163,147.04,146.99,2.5171]
[1718296700120,47.5163,147.04,146.98,2.5172]
[1718296700316,25.61,147.07,146.97,7.5524]
[1718296700501,15.9652,147.1,146.94,16.04]
[1718296700502,2.5155,147.09,147.01,5.0335]
[1718296700699,2.5157,147.08,146.99,5.0341]
[1718296700925,2.5157,147.08,147.02,2.5165]
[1718296701135,2.5158,147.07,147.01,2.5167]
[1718296701503,59.52603583,147.1,146.99,5.0342]
[1718296701504,5.031,147.09,146.99,5.0342]
[1718296701928,45.17,147.08,146.99,5.0342]
[1718296702226,2.5153,147.1,147.04,2.5162]
[1718296702405,10.0599,147.12,147.04,2.5162]
[1718296702607,5.0302,147.11,147.03,2.5164]
[1718296702806,25.61,147.09,147.01,21.9823]
[1718296703118,38.1876,147.09,147.01,15.4692]
[1718296703297,38.1876,147.09,147.01,17.9859]
[1718296703298,2.5159,147.07,147.01,17.9859]
[1718296703499,2.5157,147.08,147.01,15.4692]
[1718296703799,2.5156,147.08,147.01,15.4692]
[1718296704005,2.5156,147.08,147.03,2.5164]
[1718296704235,25.61,147.09,147.03,2.5164]
[1718296704433,28.1255,147.09,147.03,2.5163]
[1718296704606,2.5157,147.08,147.02,2.5165]
[1718296705006,28.1255,147.09,147.03,2.5164]
[1718296706321,2.5156,147.08,147.01,15.4692]
[1718296706624,2.5156,147.08,147.02,2.5166]
[1718296707326,25.61,147.09,147.02,2.5166]
[1718296707510,2.5158,147.07,147.02,2.5166]
[1718296707704,45.0,147.08,147.03,2.5164]
[1718296707911,2.5156,147.08,147.02,2.5165]
[1718296709636,70.031,147.09,147.01,17.9859]
[1718296709946,2.5158,147.07,147.01,17.9859]
[1718296710146,2.5159,147.06,147.01,17.9859]
[1718296710450,2.5158,147.07,147.01,17.9859]
[1718296710823,77.5774,147.09,147.01,17.9859]
[1718296711022,2.5158,147.07,147.01,17.9859]
[1718296711631,2.5159,147.06,147.01,17.9859]
[1718296711828,2.5162,147.05,147.01,15.4692]
[1718296712424,47.516,147.06,147.01,15.4692]
[1718296713126,2.5161,147.05,147.01,15.4692]
[1718296713326,2.5163,147.04,147.01,15.4692]
[1718296713820,2.5162,147.05,147.01,15.4692]
[1718296714155,2.5162,147.05,146.97,11.6134]
[1718296714156,2.5165,147.03,146.98,2.5172]
[1718296714456,57.75,147.06,146.99,2.5171]
[1718296714457,2.5163,147.04,146.99,2.5171]
[1718296714949,2.5165,147.03,146.98,2.5172]
[1718296715126,2.5169,147.01,146.97,23.0387]
[1718296715325,2.5167,147.02,146.97,23.0387]
[1718296715743,47.5166,147.03,146.97,25.5561]
[1718296716357,45.0,147.03,146.98,2.5172]
[1718296716532,47.5165,147.03,146.97,23.0387]
[1718296716729,47.5165,147.03,146.98,2.5173]
[1718296717239,47.5165,147.03,146.99,2.5171]
[1718296717240,45.0,147.03,146.99,2.5171]
[1718296717429,25.61,147.04,146.99,2.5171]
[1718296717756,28.1258,147.07,147.01,2.5167]
[1718296717943,45.0,147.06,147.01,2.5167]
[1718296718269,25.61,147.07,147.02,2.5166]
[1718296718425,25.61,147.1,147.04,2.5161]
[1718296718770,25.61,147.14,147.08,2.5156]
[1718296718939,2.5148,147.13,147.07,2.5157]
[1718296719732,45.97,147.14,147.05,2.5161]
[1718296720059,2.5153,147.1,147.04,2.5162]
[1718296720242,2.5153,147.1,147.01,22.821]
[1718296720243,2.5155,147.09,147.03,2.5164]
[1718296720432,28.1252,147.11,147.05,2.5161]
[1718296720631,2.5153,147.1,147.04,2.5162]
[1718296721360,2.5154,147.09,147.04,2.5162]
[1718296721536,45.0,147.1,147.03,2.5164]
[1718296721736,47.5153,147.1,147.04,2.5163]
[1718296723958,2.5154,147.09,147.04,2.5163]
[1718296724260,2.5155,147.09,147.03,2.5164]
[1718296724454,2.5157,147.08,147.02,2.5166]
[1718296724972,2.5158,147.07,147.02,2.5166]
[1718296725467,2.5158,147.07,147.0,27.2522]
[1718296725468,45.0,147.08,147.01,7.5503]
[1718296725649,45.0,147.08,147.03,2.5163]
[1718296725840,47.5158,147.08,147.02,2.5166]
[1718296726244,45.0,147.08,147.01,2.5167]
[1718296726454,2.516,147.06,147.0,24.7353]
[1718296727672,2.5161,147.05,147.0,18.553]
[1718296727838,45.34,147.07,147.0,18.553]
[1718296728362,2.5161,147.06,147.01,2.5168]
[1718296728774,2.5161,147.06,146.96,6.3546]
[1718296728775,25.61,147.06,146.99,2.5171]
[1718296728949,25.61,147.06,146.97,0.17]
[1718296728950,2.5163,147.04,146.98,2.5173]
[1718296729268,2.5163,147.04,146.99,2.5171]
[1718296729765,47.5162,147.05,146.99,2.5171]
[1718296730155,47.5162,147.05,147.0,2.5169]
[1718296730353,2.5165,147.03,146.96,22.1001]
[1718296730556,2.5165,147.03,146.98,2.5172]
[1718296730946,3.0264,147.04,146.98,2.5172]
[1718296731651,47.5161,147.05,146.99,2.5171]
[1718296731851,25.61,147.06,146.98,5.0346]
[1718296731852,28.296,147.06,147.0,2.5168]
[1718296732172,22.5162,147.05,146.99,2.517]
[1718296732463,22.5162,147.05,147.0,2.5169]
[1718296733273,2.5162,147.05,147.0,2.5169]
[1718296733465,47.5162,147.05,147.0,2.5169]
[1718296733670,2.5162,147.05,146.99,2.5171]
[1718296733877,47.5162,147.05,146.99,2.5171]
[1718296734084,47.5162,147.05,147.0,2.517]
[1718296734447,2.5163,147.04,146.99,2.517]
[1718296734753,47.5162,147.05,146.99,2.517]
[1718296734952,2.5163,147.04,146.99,2.517]
[1718296736549,2.5165,147.03,146.98,2.5172]
[1718296737474,2.5166,147.02,146.97,2.5174]
[1718296738451,2.5166,147.02,146.96,18.263]
[1718296738649,2.5166,147.02,146.97,2.5175]
[1718296739378,45.0,147.03,146.98,2.5173]
[1718296739379,47.5165,147.03,146.98,2.5173]
[1718296739692,47.5165,147.03,146.97,2.5174]
[1718296740352,70.61,147.03,146.93,5.0361]
[1718296740576,2.5171,147.0,146.95,2.5178]
[1718296741281,2.5172,146.99,146.92,20.1669]
[1718296741489,2.5176,146.97,146.91,2.5185]
[1718296741859,2.5176,146.97,146.92,2.5183]
[1718296742192,2.5176,146.97,146.91,2.5184]
[1718296742556,47.5176,146.97,146.91,2.5185]
[1718296743265,2.5177,146.96,146.9,2.5186]
[1718296743467,2.5178,146.95,146.9,2.5186]
[1718296743882,2.5178,146.95,146.89,2.8598199]
[1718296744063,2.5182,146.93,146.89,0.3410199]
[1718296744268,2.5183,146.92,146.89,0.3410199]
[1718296744458,5.0364,146.93,146.89,0.3410199]
[1718296744782,16.2828,146.9,146.89,0.3410199]
[1718296745088,53.7267,146.9,146.89,0.3410199]
[1718296745254,51.038,146.9,146.89,0.3410199]
[1718296745588,53.5567,146.9,146.89,0.3410199]
[1718296746167,51.038,146.9,146.89,0.3410199]
[1718296746456,43.8149,146.92,146.89,0.3410199]
[1718296746766,2.5185,146.91,146.89,0.3410199]
[1718296747096,63.2049,146.92,146.89,0.3410199]
[1718296747410,2.5187,146.9,146.89,0.3410199]
[1718296747553,3.1987,146.9,146.89,0.3410199]
[1718296748065,35.7922,146.9,146.89,0.3410199]
[1718296748271,90.867,146.9,146.89,0.3410199]
[1718296748970,80.7922,146.9,146.89,0.3410199]
[1718296749168,93.5961,146.9,146.89,0.3410199]
[1718296749376,111.227,146.9,146.89,0.3410199]
[1718296750366,111.227,146.9,146.89,1.99e-05]
[1718296750367,211.227,146.9,146.89,1.99e-05]
[1718296750569,2.5198,146.84,146.78,2.5206]
[1718296751180,45.0,146.85,146.76,20.881]
[1718296751181,2.5201,146.82,146.76,15.839]
[1718296751467,50.0394,146.85,146.76,15.839]
[1718296751777,0.17,146.84,146.76,15.839]
[1718296752077,2.5201,146.82,146.76,18.36]
[1718296752390,2.5199,146.83,146.77,2.5209]
[1718296754507,0.34,146.84,146.77,2.5209]
[1718296754702,0.34,146.84,146.76,15.839]
[1718296754884,25.61,146.83,146.76,15.839]
[1718296755088,2.5201,146.82,146.76,18.36]
[1718296755291,2.5201,146.82,146.77,2.5209]
[1718296755722,28.13,146.83,146.77,2.5209]
[1718296756513,25.61,146.83,146.78,2.5207]
[1718296756687,25.61,146.83,146.79,2.5205]
[1718296757288,25.61,146.83,146.78,2.5207]
[1718296757289,28.1299,146.83,146.78,2.5207]
[1718296757593,28.1299,146.83,146.77,2.5208]
[1718296757795,25.61,146.83,146.76,28.4444]
[1718296758097,28.0323,146.87,146.76,28.4444]
[1718296758098,25.529,146.9,146.84,2.5196]
[1718296758408,21.8818,146.95,146.84,5.0394]
[1718296758716,2.5184,146.92,146.84,5.0394]
[1718296759017,2.5184,146.92,146.85,2.5195]
[1718296759199,2.5185,146.91,146.85,2.5195]
[1718296759399,2.5184,146.92,146.86,2.5193]
[1718296759611,2.5185,146.91,146.85,2.5195]
[1718296759809,7.5547,146.93,146.83,15.5942]
[1718296760015,2.5187,146.9,146.84,2.5197]
[1718296760392,25.61,146.94,146.85,5.039]
[1718296760606,28.1281,146.94,146.88,2.5189]
[1718296760808,25.61,146.94,146.88,2.5189]
[1718296761018,34.02344501,146.99,146.86,7.5581]
[1718296761224,2.5178,146.96,146.9,2.5186]
[1718296761521,2.5182,146.93,146.84,11.3662]
[1718296761720,2.5182,146.93,146.87,2.5192]
[1718296761890,33.1637,146.95,146.84,6.3269]
[1718296762091,2.5185,146.91,146.85,2.5194]
[1718296762517,2.5184,146.92,146.86,2.5193]
[1718296762918,33.1637,146.95,146.86,2.5193]
[1718296763096,2.5184,146.92,146.86,2.5193]
[1718296764219,2.5184,146.92,146.84,6.3269]
[1718296764421,2.5184,146.92,146.85,2.5195]
[1718296764995,2.5182,146.93,146.84,6.3269]
[1718296765224,47.5181,146.94,146.85,5.0391]
[1718296765521,25.61,146.95,146.85,5.0391]
[1718296765687,25.61,146.97,146.87,5.0384]
[1718296765888,21.9127,146.99,146.89,5.0377]
[1718296765889,24.4299,146.99,146.89,5.0377]
[1718296766122,8.5554,146.99,146.92,2.5182]
[1718296766311,2.5177,146.96,146.89,2.5187]
[1718296766903,8.5555,146.99,146.92,2.5182]
[1718296767302,6.0382,146.99,146.87,15.1148]
[1718296767522,2.5175,146.97,146.9,2.5186]
[1718296767694,2.5176,146.97,146.9,2.5186]
[1718296767895,2.5176,146.97,146.9,2.5187]
[1718296768105,2.5177,146.96,146.89,2.5188]
[1718296768628,28.127,147.0,146.93,2.5181]
[1718296768830,25.61,147.0,146.94,2.5179]
[1718296769039,25.61,147.0,146.92,28.7569]
[1718296769338,28.127,147.0,146.93,2.5181]
[1718296769491,28.1271,147.0,146.93,2.5181]
[1718296769694,28.1271,147.0,146.94,2.518]
[1718296769931,25.61,147.0,146.94,2.518]
[1718296770227,2.5173,146.98,146.92,21.202]
[1718296770424,2.5173,146.98,146.92,15.074]
[1718296770606,2.5173,146.98,146.91,2.5185]
[1718296770811,2.5171,146.99,146.92,2.5183]
[1718296771033,2.5173,146.98,146.91,2.5184]
[1718296771314,2.5175,146.97,146.89,2.5187]
[1718296771518,2.5176,146.97,146.9,2.5186]
[1718296772112,45.0,146.98,146.9,2.5186]
[1718296772326,2.5175,146.98,146.91,2.5184]
[1718296772629,2.5173,146.98,146.91,2.5185]
[1718296772833,65.7,146.99,146.88,21.7191]
[1718296773003,2.5179,146.95,146.88,24.238]
[1718296773205,2.518,146.94,146.88,2.5189]
[1718296773609,2.518,146.94,146.87,2.5191]
[1718296773930,2.518,146.94,146.88,2.519]
[1718296774234,22.5177,146.96,146.86,22.6741]
[1718296774443,22.5177,146.96,146.89,2.5188]
[1718296774623,20.0,146.96,146.89,2.5188]
[1718296774817,22.5177,146.96,146.89,2.5188]
[1718296775151,22.5177,146.96,146.9,2.5187]
[1718296775315,22.5177,146.96,146.89,2.5188]
[1718296775514,25.61,146.97,146.9,2.5185]
[1718296775818,25.61,146.97,146.9,2.5186]
[1718296775819,20.0,146.96,146.9,2.5186]
[1718296776026,22.5176,146.96,146.89,2.5188]
[1718296776418,20.0,146.96,146.9,2.5186]
[1718296777247,22.5177,146.96,146.9,2.5186]
[1718296777622,20.0,146.96,146.9,2.5186]
[1718296777919,28.1276,146.97,146.9,2.5186]
[1718296777920,25.61,146.97,146.92,2.5183]
[1718296778122,2.5172,146.99,146.93,2.5181]
[1718296778351,2.5173,146.98,146.89,5.0375]
[1718296778665,2.5173,146.98,146.92,2.5183]
[1718296778820,25.61,147.0,146.9,7.556]
[1718296779153,28.1271,147.0,146.94,2.518]
[1718296779317,2.5172,146.99,146.92,2.5182]
[1718296779516,2.5173,146.98,146.92,2.5182]
[1718296780016,2.5171,146.99,146.93,2.5181]
[1718296781329,2.5174,146.98,146.9,5.0372]
[1718296781617,2.5176,146.97,146.91,2.5185]
[1718296781945,25.61,147.0,146.89,27.5566]
[1718296782145,28.127,147.0,146.94,2.5179]
[1718296782735,25.61,147.0,146.94,2.518]
[1718296782949,28.1271,147.0,146.94,2.518]
[1718296783246,2.5171,147.0,146.93,2.5181]
[1718296783453,67.5171,147.0,146.93,2.5181]
[1718296783655,22.5171,147.0,146.94,2.518]
[1718296784158,20.0,147.0,146.91,22.6662]
[1718296784460,28.1269,147.01,146.92,12.5918]
[1718296784640,271.2565,147.02,146.96,2.5175]
[1718296784842,20.0,147.01,146.96,2.5175]
[1718296785041,20.0,147.01,146.97,2.5174]
[1718296785558,20.0,147.01,146.96,2.5175]
[1718296785762,20.0,147.01,146.97,2.5175]
[1718296786056,20.0,147.01,146.96,2.5176]
[1718296786260,18.1565,147.02,146.96,2.5175]
[1718296786460,18.1565,147.02,146.95,2.5177]
[1718296786461,2.5168,147.01,146.95,2.5177]
[1718296786962,2.5174,146.98,146.92,2.5183]
[1718296787271,2.5172,146.99,146.93,2.5181]
[1718296787561,17.6208,146.99,146.91,15.8258]
[1718296787774,2.5175,146.97,146.91,18.3443]
[1718296788135,77.7552,147.0,146.91,18.3443]
[1718296788354,2.5174,146.98,146.92,2.5183]
[1718296788733,2.5172,146.99,146.93,2.5181]
[1718296788935,2.5174,146.98,146.92,2.5183]
[1718296789137,45.17,147.0,146.92,2.5183]
[1718296789338,2.5172,146.99,146.93,2.518]
[1718296789745,2.5173,146.98,146.92,2.5182]
[1718296791071,2.5177,146.96,146.9,2.5186]
[1718296791241,22.655,146.99,146.91,2.5184]
[1718296791242,2.5176,146.97,146.91,2.5184]
[1718296791865,2.5175,146.97,146.91,2.5185]
[1718296792368,22.5174,146.98,146.92,2.5183]
[1718296792671,2.5174,146.98,146.92,2.5183]
[1718296792960,47.5174,146.98,146.92,2.5183]
[1718296793149,2.5175,146.97,146.91,2.5184]
[1718296794939,2.5177,146.96,146.9,2.5186]
[1718296795185,2.5178,146.95,146.89,2.5187]
[1718296795670,2.5178,146.95,146.9,2.5187]
[1718296795861,51.8608,146.97,146.9,2.5187]
[1718296795862,2.5177,146.96,146.9,2.5187]
[1718296796041,2.5178,146.95,146.89,2.5187]
[1718296796242,2.518,146.94,146.88,2.5189]
[1718296797651,16.4361,146.96,146.84,15.5704]
[1718296797954,16.4361,146.96,146.94,2.5179]
[1718296798487,16.4361,146.96,146.93,2.5181]
[1718296799256,16.4361,146.96,146.9,12.5932]
[1718296799257,16.4361,146.96,146.92,2.5182]